fUST/lending_fUST_20240507
["ID","MTS","AMOUNT","RATE_DAILY","PERIOD"]
[326505403,1715029845960,-186.843988,0.00016438,2]
[326505405,1715029845969,-151.0,0.00016438,2]
[326505407,1715029845979,-220.297003,0.00016438,2]
[326505409,1715029845988,-500.0,0.00016438,2]
[326505411,1715029846009,-151.0,0.00016438,2]
[326505413,1715029846027,-151.0,0.00016438,2]
[326505415,1715029846042,-220.297003,0.00016438,2]
[326505417,1715029846055,-151.0,0.00016438,2]
[326505418,1715029846067,-220.297003,0.00016438,2]
[326505421,1715029846088,-251.980604,0.00016438,2]
[326505423,1715029846098,-220.297003,0.00016438,2]
[326505425,1715029846108,-220.297003,0.00016438,2]
[326505427,1715029846117,-220.297003,0.00016438,2]
[326505429,1715029846127,-220.297003,0.00016438,2]
[326505431,1715029846137,-220.297005,0.00016438,2]
[326505433,1715029846146,-500.0,0.00016438,2]
[326505435,1715029846156,-500.0,0.00016438,2]
[326505437,1715029846166,-500.0,0.00016438,2]
[326505439,1715029846176,-183.225876,0.00016438,2]
[326505441,1715029846186,-180.83502951,0.00016438,2]
[326505443,1715029846195,-443.285424,0.00016438,2]
[326505445,1715029846205,-443.285424,0.00016438,2]
[326505462,1715029846387,-443.285424,0.00016438,2]
[326505463,1715029846398,-443.285424,0.00016438,2]
[326505464,1715029846407,-443.285424,0.00016438,2]
[326505465,1715029846417,-443.285424,0.00016438,2]
[326505466,1715029846434,-443.285424,0.00016438,2]
[326505467,1715029846443,-443.285424,0.00016438,2]
[326505468,1715029846453,-443.285424,0.00016438,2]
[326505469,1715029846463,-443.285424,0.00016438,2]
[326505470,1715029846472,-443.285424,0.00016438,2]
[326505471,1715029846483,-500.0,0.00016438,2]
[326505472,1715029846493,-443.285424,0.00016438,2]
[326505473,1715029846502,-443.285424,0.00016438,2]
[326505474,1715029846512,-443.285418,0.00016438,2]
[326505475,1715029846522,-1832.49,0.00016438,2]
[326505476,1715029846532,-500.0,0.00016438,2]
[326505477,1715029846541,-500.0,0.00016438,2]
[326505478,1715029846550,-500.0,0.00016438,2]
[326505479,1715029846560,-687.58,0.00016438,2]
[326505480,1715029846570,-151.0,0.00016438,2]
[326505481,1715029846580,-151.0,0.00016438,2]
[326505482,1715029846589,-151.0,0.00016438,2]
[326505483,1715029846599,-151.0,0.00016438,2]
[326505484,1715029846608,-272.834512,0.00016438,2]
[326505485,1715029846617,-583.66,0.00016438,2]
[326505486,1715029846627,-500.00307204,0.00016438,2]
[326505487,1715029846636,-500.0,0.00016438,2]
[326505488,1715029846649,-500.0,0.00016438,2]
[326505489,1715029846659,-1007.67,0.00016438,2]
[326505490,1715029846671,-500.0,0.00016438,2]
[326505491,1715029846681,-500.0,0.00016438,2]
[326505492,1715029846691,-595.06,0.00016438,2]
[326505493,1715029846701,-842.74,0.00016438,2]
[326505494,1715029846710,-677.63,0.00016438,2]
[326505495,1715029846720,-500.0,0.00016438,2]
[326505496,1715029846732,-1024.68,0.00016438,2]
[326505497,1715029846741,-590.398787,0.00016438,2]
[326505498,1715029846750,-5048.08,0.00016438,2]
[326505499,1715029846759,-500.0,0.00016438,2]
[326505500,1715029846768,-518.85413994,0.00016438,2]
[326505501,1715029846778,-500.0,0.00016438,2]
[326505502,1715029846787,-500.0,0.00016438,2]
[326505503,1715029846797,-500.0,0.00016438,2]
[326505504,1715029846806,-500.0,0.00016438,2]
[326505505,1715029846816,-151.0,0.00016438,2]
[326505506,1715029846826,-500.0,0.00016438,2]
[326505507,1715029846836,-542.49,0.00016438,2]
[326505508,1715029846846,-500.0,0.00016438,2]
[326505509,1715029846855,-2695.72,0.00016438,2]
[326505510,1715029846865,-500.0,0.00016438,2]
[326505511,1715029846875,-500.0,0.00016438,2]
[326505512,1715029846885,-500.0,0.00016438,2]
[326505513,1715029846894,-500.0,0.00016438,2]
[326505514,1715029846903,-500.0,0.00016438,2]
[326505515,1715029846913,-3351.15,0.00016438,2]
[326505516,1715029846922,-500.0,0.00016438,2]
[326505517,1715029846932,-666.79,0.00016438,2]
[326505518,1715029846941,-48053.67,0.00016438,2]
[326505519,1715029846950,-500.0,0.00016438,2]
[326505520,1715029846959,-500.0,0.00016438,2]
[326505521,1715029846969,-878.45,0.00016438,2]
[326505522,1715029846980,-500.0,0.00016438,2]
[326505523,1715029846989,-500.0,0.00016438,2]
[326505524,1715029846998,-500.0,0.00016438,2]
[326505525,1715029847008,-500.0,0.00016438,2]
[326505526,1715029847018,-385.108573,0.00016438,2]
[326505527,1715029847027,-385.108573,0.00016438,2]
[326505528,1715029847037,-385.108573,0.00016438,2]
[326505529,1715029847046,-385.108573,0.00016438,2]
[326505530,1715029847055,-385.108573,0.00016438,2]
[326505531,1715029847064,-385.108573,0.00016438,2]
[326505532,1715029847074,-385.108573,0.00016438,2]
[326505533,1715029847083,-385.108573,0.00016438,2]
[326505534,1715029847093,-385.108573,0.00016438,2]
[326505535,1715029847102,-385.108571,0.00016438,2]
[326505536,1715029847112,-1858.45,0.00016438,2]
[326505537,1715029847121,-500.0,0.00016438,2]
[326505538,1715029847132,-5464.29,0.00016438,2]
[326505539,1715029847142,-500.0,0.00016438,2]
[326505540,1715029847152,-507.02,0.00016438,2]
[326505541,1715029847161,-2512.45,0.00016438,2]
[326505542,1715029847170,-500.0,0.00016438,2]
[326505543,1715029847180,-500.0,0.00016438,2]
[326505544,1715029847190,-500.0,0.00016438,2]
[326505545,1715029847201,-930.16981,0.00016438,2]
[326505546,1715029847210,-1196.08,0.00016438,2]
[326505547,1715029847221,-930.16981,0.00016438,2]
[326505548,1715029847230,-930.16981,0.00016438,2]
[326505549,1715029847239,-500.0,0.00016438,2]
[326505550,1715029847249,-930.16981,0.00016438,2]
[326505551,1715029847258,-930.16981,0.00016438,2]
[326505552,1715029847268,-500.0,0.00016438,2]
[326505553,1715029847277,-806.52,0.00016438,2]
[326505554,1715029847286,-930.16981,0.00016438,2]
[326505555,1715029847295,-500.0,0.00016438,2]
[326505556,1715029847304,-500.0,0.00016438,2]
[326505557,1715029847314,-930.16981,0.00016438,2]
[326505558,1715029847323,-930.16981,0.00016438,2]
[326505559,1715029847332,-930.16981,0.00016438,2]
[326505560,1715029847341,-930.169802,0.00016438,2]
[326505561,1715029847350,-151.0,0.00016438,2]
[326505562,1715029847360,-151.0,0.00016438,2]
[326505563,1715029847369,-151.0,0.00016438,2]
[326505564,1715029847380,-151.0,0.00016438,2]
[326505565,1715029847389,-151.0,0.00016438,2]
[326505566,1715029847398,-2191.85,0.00016438,2]
[326505567,1715029847408,-500.0,0.00016438,2]
[326505568,1715029847417,-500.0,0.00016438,2]
[326505569,1715029847426,-625.35,0.00016438,2]
[326505570,1715029847435,-500.0,0.00016438,2]
[326505571,1715029847444,-500.0,0.00016438,2]
[326505572,1715029847453,-500.0,0.00016438,2]
[326505573,1715029847463,-151.0,0.00016438,2]
[326505574,1715029847472,-151.0,0.00016438,2]
[326505575,1715029847482,-500.0,0.00016438,2]
[326505576,1715029847493,-151.0,0.00016438,2]
[326505577,1715029847502,-151.0,0.00016438,2]
[326505578,1715029847512,-300.380044,0.00016438,2]
[326505579,1715029847521,-8517.74,0.00016438,2]
[326505580,1715029847531,-500.0,0.00016438,2]
[326505581,1715029847541,-500.0,0.00016438,2]
[326505582,1715029847551,-867.98,0.00016438,2]
[326505583,1715029847560,-500.0,0.00016438,2]
[326505584,1715029847570,-500.0,0.00016438,2]
[326505585,1715029847580,-1020.86,0.00016438,2]
[326505586,1715029847589,-8800.68,0.00016438,2]
[326505587,1715029847599,-575.99,0.00016438,2]
[326505588,1715029847608,-4768.45,0.00016438,2]
[326505589,1715029847618,-500.0,0.00016438,2]
[326505590,1715029847629,-500.0,0.00016438,2]
[326505591,1715029847638,-1729.95,0.00016438,2]
[326505592,1715029847653,-500.0,0.00016438,2]
[326505593,1715029847662,-707.44,0.00016438,2]
[326505594,1715029847672,-800.65,0.00016438,2]
[326505595,1715029847681,-500.0,0.00016438,2]
[326505596,1715029847691,-418.043561,0.00016438,2]
[326505597,1715029847701,-418.043561,0.00016438,2]
[326505598,1715029847710,-4405.65,0.00016438,2]
[326505599,1715029847719,-418.043561,0.00016438,2]
[326505600,1715029847730,-418.043561,0.00016438,2]
[326505601,1715029847739,-418.043561,0.00016438,2]
[326505602,1715029847748,-418.043561,0.00016438,2]
[326505603,1715029847758,-418.043561,0.00016438,2]
[326505604,1715029847767,-418.043561,0.00016438,2]
[326505605,1715029847777,-500.0,0.00016438,2]
[326505606,1715029847786,-500.0,0.00016438,2]
[326505607,1715029847796,-500.0,0.00016438,2]
[326505608,1715029847805,-521.2452711,0.00016438,2]
[326505609,1715029847815,-748.01,0.00016438,2]
[326505610,1715029847824,-500.0,0.00016438,2]
[326505611,1715029847834,-500.0,0.00016438,2]
[326505612,1715029847843,-500.0,0.00016438,2]
[326505613,1715029847852,-500.0,0.00016438,2]
[326505614,1715029847862,-500.0,0.00016438,2]
[326505615,1715029847871,-500.0,0.00016438,2]
[326505616,1715029847882,-500.0,0.00016438,2]
[326505617,1715029847892,-1160.55,0.00016438,2]
[326505618,1715029847901,-6373.51,0.00016438,2]
[326505619,1715029847911,-572.6,0.00016438,2]
[326505620,1715029847921,-4109.57,0.00016438,2]
[326505621,1715029847930,-1386.28,0.00016438,2]
[326505622,1715029847939,-500.0,0.00016438,2]
[326505623,1715029847949,-500.0,0.00016438,2]
[326505624,1715029847959,-560.23445337,0.00016438,2]
[326505625,1715029847968,-500.0,0.00016438,2]
[326505626,1715029847978,-676.3,0.00016438,2]
[326505627,1715029847987,-4248.89,0.00016438,2]
[326505628,1715029847996,-500.0,0.00016438,2]
[326505629,1715029848007,-9725.54,0.00016438,2]
[326505630,1715029848016,-5026.21,0.00016438,2]
[326505631,1715029848026,-500.0,0.00016438,2]
[326505632,1715029848036,-500.0,0.00016438,2]
[326505633,1715029848046,-500.0,0.00016438,2]
[326505634,1715029848056,-989.45,0.00016438,2]
[326505635,1715029848065,-568.36,0.00016438,2]
[326505636,1715029848074,-500.0,0.00016438,2]
[326505637,1715029848083,-500.0,0.00016438,2]
[326505638,1715029848093,-215.212234,0.00016438,2]
[326505639,1715029848102,-273.25764425,0.000165,2]
[326505640,1715029848111,-408.1511192,0.0001663,2]
[326505641,1715029848121,-500.0,0.00016712,2]
[326505642,1715029848131,-500.0,0.00016712,2]
[326505643,1715029848140,-500.0,0.00016712,2]
[326505644,1715029848149,-500.0,0.00016712,2]
[326505645,1715029848159,-1142.71,0.00016712,2]
[326505646,1715029848168,-500.0,0.00016712,2]
[326505647,1715029848177,-500.0,0.00016712,2]
[326505648,1715029848187,-500.0,0.00016712,2]
[326505649,1715029848196,-873.32,0.00016712,2]
[326505650,1715029848205,-500.0,0.00016712,2]
[326505651,1715029848215,-500.0,0.00016712,2]
[326505652,1715029848224,-500.0,0.00016712,2]
[326505653,1715029848234,-500.0,0.00016712,2]
[326505654,1715029848244,-500.0,0.00016712,2]
[326505655,1715029848254,-520.59,0.00016712,2]
[326505656,1715029848264,-679.61,0.00016712,2]
[326505657,1715029848278,-500.0,0.00016712,2]
[326505658,1715029848289,-939.46,0.00016712,2]
[326505659,1715029848299,-506.24,0.00016712,2]
[326505660,1715029848310,-500.0,0.00016712,2]
[326505661,1715029848319,-500.0,0.00016712,2]
[326505662,1715029848328,-500.0,0.00016712,2]
[326505663,1715029848338,-500.0,0.00016712,2]
[326505664,1715029848347,-500.0,0.00016712,2]
[326505665,1715029848357,-500.0,0.00016712,2]
[326505666,1715029848366,-587.18,0.00016712,2]
[326505667,1715029848375,-500.0,0.00016712,2]
[326505668,1715029848384,-500.0,0.00016712,2]
[326505669,1715029848393,-1192.19,0.00016712,2]
[326505670,1715029848403,-686.13,0.00016712,2]
[326505671,1715029848413,-500.0,0.00016712,2]
[326505672,1715029848422,-626.82,0.00016712,2]
[326505673,1715029848431,-500.0,0.00016712,2]
[326505674,1715029848441,-500.0,0.00016712,2]
[326505675,1715029848450,-500.0,0.00016712,2]
[326505676,1715029848460,-500.0,0.00016712,2]
[326505677,1715029848469,-500.0,0.00016712,2]
[326505678,1715029848479,-500.0,0.00016712,2]
[326505679,1715029848489,-500.0,0.00016712,2]
[326505680,1715029848500,-3189.96,0.00016712,2]
[326505681,1715029848510,-2582.63,0.00016712,2]
[326505682,1715029848520,-1146.0,0.00016712,2]
[326505683,1715029848529,-1442.84,0.00016712,2]
[326505684,1715029848538,-500.0,0.00016712,2]
[326505685,1715029848548,-1226.22,0.00016712,2]
[326505686,1715029848557,-500.0,0.00016712,2]
[326505687,1715029848566,-360.351349,0.00016712,2]
[326505688,1715029848575,-500.0,0.00016712,2]
[326505689,1715029848585,-500.0,0.00016712,2]
[326505690,1715029848594,-665.26,0.00016712,2]
[326505691,1715029848604,-500.0,0.00016712,2]
[326505692,1715029848614,-980.92,0.00016712,2]
[326505693,1715029848623,-500.0,0.00016712,2]
[326505694,1715029848633,-500.0,0.00016712,2]
[326505695,1715029848644,-500.0,0.00016712,2]
[326505696,1715029848657,-500.0,0.00016712,2]
[326505697,1715029848666,-500.0,0.00016712,2]
[326505698,1715029848676,-500.0,0.00016712,2]
[326505699,1715029848685,-500.0,0.00016712,2]
[326505700,1715029848696,-1143.13,0.00016712,2]
[326505701,1715029848706,-571.60921931,0.00016712,2]
[326505702,1715029848717,-500.0,0.00016712,2]
[326505703,1715029848729,-655.33,0.00016712,2]
[326505704,1715029848739,-560.89,0.00016712,2]
[326505705,1715029848748,-713.71,0.00016712,2]
[326505706,1715029848758,-500.0,0.00016712,2]
[326505707,1715029848804,-500.0,0.00016712,2]
[326505708,1715029848815,-500.0,0.00016712,2]
[326505709,1715029848824,-500.0,0.00016712,2]
[326505710,1715029848834,-241.89959023,0.00016712,2]
[326505711,1715029848845,-1832.49,0.00016712,2]
[326505712,1715029848854,-500.0,0.00016712,2]
[326505713,1715029848864,-500.0,0.00016712,2]
[326505714,1715029848873,-500.0,0.00016712,2]
[326505715,1715029848883,-687.58,0.00016712,2]
[326505716,1715029848892,-583.66,0.00016712,2]
[326505717,1715029848901,-500.0,0.00016712,2]
[326505718,1715029848911,-500.0,0.00016712,2]
[326505719,1715029848921,-1007.67,0.00016712,2]
[326505720,1715029848930,-500.0,0.00016712,2]
[326505721,1715029848939,-500.0,0.00016712,2]
[326505722,1715029848948,-842.74,0.00016712,2]
[326505723,1715029848958,-677.63,0.00016712,2]
[326505724,1715029848968,-1024.68,0.00016712,2]
[326505725,1715029848985,-5048.08,0.00016712,2]
[326505726,1715029848999,-500.0,0.00016712,2]
[326505727,1715029849008,-500.0,0.00016712,2]
[326505728,1715029849018,-500.0,0.00016712,2]
[326505729,1715029849028,-500.0,0.00016712,2]
[326505730,1715029849037,-500.0,0.00016712,2]
[326505731,1715029849047,-500.0,0.00016712,2]
[326505732,1715029849057,-542.49,0.00016712,2]
[326505733,1715029849067,-500.0,0.00016712,2]
[326505734,1715029849076,-2695.72,0.00016712,2]
[326505735,1715029849087,-500.0,0.00016712,2]
[326505736,1715029849097,-500.0,0.00016712,2]
[326505737,1715029849106,-500.0,0.00016712,2]
[326505738,1715029849116,-500.0,0.00016712,2]
[326505739,1715029849126,-500.0,0.00016712,2]
[326505740,1715029849136,-3351.15,0.00016712,2]
[326505741,1715029849145,-500.0,0.00016712,2]
[326505742,1715029849154,-666.79,0.00016712,2]
[326505743,1715029849163,-48053.67,0.00016712,2]
[326505744,1715029849173,-532.91867739,0.00016712,2]
[326505745,1715029849182,-878.45,0.00016712,2]
[326505746,1715029849191,-500.0,0.00016712,2]
[326505747,1715029849201,-500.0,0.00016712,2]
[326505748,1715029849210,-500.0,0.00016712,2]
[326505749,1715029849219,-500.0,0.00016712,2]
[326505750,1715029849229,-500.0,0.00016712,2]
[326505751,1715029849239,-1858.45,0.00016712,2]
[326505752,1715029849248,-500.0,0.00016712,2]
[326505753,1715029849257,-5464.29,0.00016712,2]
[326505754,1715029849267,-500.0,0.00016712,2]
[326505755,1715029849277,-507.02,0.00016712,2]
[326505756,1715029849287,-2512.45,0.00016712,2]
[326505757,1715029849297,-497.05156099,0.00016712,2]
[326505758,1715029849306,-500.0,0.00016712,2]
[326505759,1715029849316,-500.0,0.00016712,2]
[326505760,1715029849326,-1196.08,0.00016712,2]
[326505761,1715029849335,-203.25859044,0.00016712,2]
[326505762,1715029849345,-806.52,0.00016712,2]
[326505763,1715029849355,-500.0,0.00016712,2]
[326505764,1715029849364,-500.0,0.00016712,2]
[326505765,1715029849379,-500.0,0.00016712,2]
[326505766,1715029849388,-2191.85,0.00016712,2]
[326505767,1715029849398,-500.0,0.00016712,2]
[326505768,1715029849407,-500.00554308,0.00016712,2]
[326505769,1715029849417,-625.35,0.00016712,2]
[326505770,1715029849426,-500.0,0.00016712,2]
[326505771,1715029849436,-500.0,0.00016712,2]
[326505772,1715029849445,-500.0,0.00016712,2]
[326505773,1715029849455,-264.20254641,0.00016712,2]
[326505774,1715029849464,-8517.74,0.00016712,2]
[326505775,1715029849474,-500.0,0.00016712,2]
[326505776,1715029849484,-500.0,0.00016712,2]
[326505777,1715029849494,-867.98,0.00016712,2]
[326505778,1715029849504,-500.0,0.00016712,2]
[326505779,1715029849514,-500.0,0.00016712,2]
[326505781,1715029849524,-1020.86,0.00016712,2]
[326505783,1715029849534,-8800.68,0.00016712,2]
[326505784,1715029849543,-575.99,0.00016712,2]
[326505785,1715029849553,-4768.45,0.00016712,2]
[326505786,1715029849563,-500.0,0.00016712,2]
[326505787,1715029849573,-500.0,0.00016712,2]
[326505788,1715029849583,-1729.95,0.00016712,2]
[326505789,1715029849593,-500.0,0.00016712,2]
[326505790,1715029849603,-707.44,0.00016712,2]
[326505791,1715029849612,-800.65,0.00016712,2]
[326505792,1715029849622,-500.0,0.00016712,2]
[326505793,1715029849633,-4405.65,0.00016712,2]
[326505794,1715029849642,-511.17032227,0.00016712,2]
[326505795,1715029849656,-500.0,0.00016712,2]
[326505796,1715029849665,-500.0,0.00016712,2]
[326505797,1715029849679,-748.01,0.00016712,2]
[326505798,1715029849689,-500.0,0.00016712,2]
[326505799,1715029849698,-500.0,0.00016712,2]
[326505800,1715029849708,-500.0,0.00016712,2]
[326505801,1715029849717,-500.0,0.00016712,2]
[326505802,1715029849729,-500.0,0.00016712,2]
[326505803,1715029849738,-500.0,0.00016712,2]
[326505804,1715029849748,-1160.55,0.00016712,2]
[326505805,1715029849758,-6373.51,0.00016712,2]
[326505806,1715029849767,-500.0,0.00016712,2]
[326505807,1715029849776,-572.6,0.00016712,2]
[326505808,1715029849785,-4109.57,0.00016712,2]
[326505809,1715029849795,-1386.28,0.00016712,2]
[326505810,1715029849805,-500.0,0.00016712,2]
[326505811,1715029849814,-500.0,0.00016712,2]
[326505812,1715029849825,-500.0,0.00016712,2]
[326505813,1715029849835,-676.3,0.00016712,2]
[326505814,1715029849844,-4248.89,0.00016712,2]
[326505815,1715029849853,-9725.54,0.00016712,2]
[326505816,1715029849863,-500.0,0.00016712,2]
[326505817,1715029849873,-5026.21,0.00016712,2]
[326505818,1715029849883,-500.0,0.00016712,2]
[326505819,1715029849893,-500.0,0.00016712,2]
[326505820,1715029849903,-500.0,0.00016712,2]
[326505821,1715029849913,-989.45,0.00016712,2]
[326505822,1715029849923,-568.36,0.00016712,2]
[326505823,1715029849933,-500.0,0.00016712,2]
[326505824,1715029849944,-500.0,0.00016712,2]
[326505825,1715029849954,-531.5,0.00016915,3]
[326505826,1715029849963,-204.1392147,0.00016958,2]
[326505827,1715029849974,-1396.02575092,0.00016984,2]
[326505828,1715029849984,-500.0,0.00016986,2]
[326505829,1715029849995,-500.0,0.00016986,2]
[326505830,1715029850005,-500.0,0.00016986,2]
[326505831,1715029850015,-500.0,0.00016986,2]
[326505832,1715029850025,-1142.71,0.00016986,2]
[326505833,1715029850035,-500.0,0.00016986,2]
[326505834,1715029850045,-500.0,0.00016986,2]
[326505835,1715029850055,-500.0,0.00016986,2]
[326505836,1715029850065,-873.32,0.00016986,2]
[326505837,1715029850074,-500.0,0.00016986,2]
[326505838,1715029850084,-500.0,0.00016986,2]
[326505839,1715029850094,-500.0,0.00016986,2]
[326505840,1715029850104,-500.0,0.00016986,2]
[326505841,1715029850113,-500.0,0.00016986,2]
[326505842,1715029850124,-520.59,0.00016986,2]
[326505843,1715029850134,-679.61,0.00016986,2]
[326505844,1715029850144,-500.0,0.00016986,2]
[326505845,1715029850154,-506.24,0.00016986,2]
[326505846,1715029850164,-939.46,0.00016986,2]
[326505847,1715029850174,-500.0,0.00016986,2]
[326505848,1715029850184,-500.0,0.00016986,2]
[326505849,1715029850194,-560.33900735,0.00016986,2]
[326505850,1715029850204,-500.0,0.00016986,2]
[326505851,1715029850214,-500.0,0.00016986,2]
[326505852,1715029850223,-500.0,0.00016986,2]
[326505853,1715029850236,-587.18,0.00016986,2]
[326505854,1715029850246,-500.0,0.00016986,2]
[326505855,1715029850256,-500.0,0.00016986,2]
[326505856,1715029850267,-1192.19,0.00016986,2]
[326505857,1715029850277,-686.13,0.00016986,2]
[326505858,1715029850288,-500.0,0.00016986,2]
[326505859,1715029850298,-626.82,0.00016986,2]
[326505860,1715029850308,-500.0,0.00016986,2]
[326505861,1715029850318,-500.0,0.00016986,2]
[326505862,1715029850328,-500.0,0.00016986,2]
[326505863,1715029850338,-500.0,0.00016986,2]
[326505864,1715029850348,-500.0,0.00016986,2]
[326505865,1715029850358,-500.0,0.00016986,2]
[326505866,1715029850369,-500.0,0.00016986,2]
[326505867,1715029850379,-3189.96,0.00016986,2]
[326505868,1715029850389,-2582.63,0.00016986,2]
[326505869,1715029850399,-1146.0,0.00016986,2]
[326505870,1715029850409,-1442.84,0.00016986,2]
[326505871,1715029850419,-500.0,0.00016986,2]
[326505872,1715029850428,-1226.22,0.00016986,2]
[326505873,1715029850440,-500.0,0.00016986,2]
[326505874,1715029850450,-500.0,0.00016986,2]
[326505875,1715029850460,-500.0,0.00016986,2]
[326505876,1715029850469,-665.26,0.00016986,2]
[326505877,1715029850480,-500.0,0.00016986,2]
[326505878,1715029850492,-980.92,0.00016986,2]
[326505879,1715029850502,-500.0,0.00016986,2]
[326505880,1715029850515,-500.0,0.00016986,2]
[326505881,1715029850525,-500.0,0.00016986,2]
[326505882,1715029850535,-500.0,0.00016986,2]
[326505883,1715029850544,-500.0,0.00016986,2]
[326505884,1715029850554,-500.0,0.00016986,2]
[326505885,1715029850564,-1143.13,0.00016986,2]
[326505886,1715029850573,-500.0,0.00016986,2]
[326505887,1715029850583,-500.0,0.00016986,2]
[326505888,1715029850592,-655.33,0.00016986,2]
[326505889,1715029850602,-560.89,0.00016986,2]
[326505890,1715029850612,-713.71,0.00016986,2]
[326505891,1715029850622,-500.0,0.00016986,2]
[326505892,1715029850633,-642.27407886,0.00016986,2]
[326505893,1715029850643,-500.0,0.00016986,2]
[326505894,1715029850655,-500.0,0.00016986,2]
[326505895,1715029850665,-1832.49,0.00016986,2]
[326505896,1715029850678,-500.0,0.00016986,2]
[326505897,1715029850687,-500.0,0.00016986,2]
[326505898,1715029850699,-500.0,0.00016986,2]
[326505899,1715029850709,-583.66,0.00016986,2]
[326505900,1715029850719,-500.0,0.00016986,2]
[326505901,1715029850732,-500.0,0.00016986,2]
[326505902,1715029850745,-1007.67,0.00016986,2]
[326505903,1715029850755,-500.0,0.00016986,2]
[326505904,1715029850764,-500.0,0.00016986,2]
[326505905,1715029850776,-842.74,0.00016986,2]
[326505906,1715029850786,-677.63,0.00016986,2]
[326505907,1715029850796,-1024.68,0.00016986,2]
[326505908,1715029850805,-5048.08,0.00016986,2]
[326505909,1715029850816,-500.0,0.00016986,2]
[326505910,1715029850826,-500.0,0.00016986,2]
[326505911,1715029850836,-500.0,0.00016986,2]
[326505912,1715029850845,-500.0,0.00016986,2]
[326505913,1715029850855,-500.0,0.00016986,2]
[326505914,1715029850865,-500.0,0.00016986,2]
[326505915,1715029850874,-542.49,0.00016986,2]
[326505916,1715029850884,-500.0,0.00016986,2]
[326505917,1715029850894,-2695.72,0.00016986,2]
[326505918,1715029850904,-500.0,0.00016986,2]
[326505919,1715029850914,-500.0,0.00016986,2]
[326505920,1715029850923,-500.0,0.00016986,2]
[326505921,1715029850933,-500.0,0.00016986,2]
[326505922,1715029850943,-500.0,0.00016986,2]
[326505923,1715029850952,-3351.15,0.00016986,2]
[326505924,1715029850962,-500.0,0.00016986,2]
[326505925,1715029850972,-666.79,0.00016986,2]
[326505926,1715029850981,-24431.39509644,0.00016986,2]
[326505927,1715029851427,-731.45,0.00016438,2]
[326505928,1715029851437,-8425.39499065,0.00016986,2]
[326505933,1715030070261,4273.53744145,0.0002,10]
[326505934,1715030089808,1457.58935385,0.0002,10]
[326505938,1715031009774,3000.0,0.000211,9]
[326505980,1715031034602,-6946.84771296,0.00014299,2]
[326505981,1715031034612,-9294.66201866,0.000143,2]
[326505982,1715031034625,-587.83417054,0.000143,2]
[326505983,1715031034637,-907.44942013,0.000143,2]
[326505984,1715031034650,-721.06489,0.000143,2]
[326506021,1715031039471,-13388.98950067,0.000143,2]
[326506022,1715031039482,-1001.1062598,0.000144,2]
[326506023,1715031039492,-212.734786,0.00014553,2]
[326506024,1715031039502,-165.99571681,0.00015242,2]
[326506025,1715031039512,-942.1730376,0.00015262,2]